bitfinex/quotes_SOLUSD_20250928
["timestamp","ask_amount","ask_price","bid_price","bid_amount"]
[1759073850378,26.0,203.31,203.27,13.59559401]
[1759073850579,26.0,203.31,203.28,0.72]
[1759073850880,26.0,203.31,203.29,0.72]
[1759073851181,26.0,203.35,203.29,0.72]
[1759073851354,13.59559401,203.33,203.3,13.59559401]
[1759073851685,26.0,203.34,203.31,0.72]
[1759073853162,26.0,203.34,203.3,13.59559401]
[1759073853372,26.0,203.34,203.31,0.72]
[1759073853570,26.0,203.34,203.32,0.72]
[1759073854071,26.0,203.34,203.3,18.51434104]
[1759073854072,26.0,203.34,203.33,0.72]
[1759073854582,26.0,203.34,203.31,0.72]
[1759073854781,26.0,203.34,203.32,0.72]
[1759073859780,27.73759114,203.35,203.33,0.72]
[1759073860181,1.73759114,203.35,203.3,4.91874622]
[1759073860356,1.73759114,203.35,203.32,0.72]
[1759073860783,26.0,203.34,203.33,0.72]
[1759073861373,27.73759114,203.35,203.33,0.72]
[1759073862478,1.93759114,203.34,203.28,0.72]
[1759073862682,1.73759114,203.31,203.29,13.59559401]
[1759073863193,1.73759114,203.31,203.29,14.31559401]
[1759073863359,1.73759114,203.31,203.27,14.31559401]
[1759073863561,1.73759114,203.31,203.28,0.72]
[1759073864077,1.73759114,203.31,203.29,0.72]
[1759073864472,1.73759114,203.31,203.27,14.31559401]
[1759073864781,1.73759114,203.31,203.28,0.72]
[1759073864958,1.73759114,203.31,203.27,13.59559401]
[1759073865163,1.73759114,203.31,203.28,0.72]
[1759073865567,15.33318515,203.32,203.28,0.72]
[1759073865876,1.73759114,203.33,203.28,5.63930083]
[1759073866076,26.0,203.34,203.29,14.31559401]
[1759073866273,26.0,203.34,203.3,0.72]
[1759073866681,27.73759114,203.31,203.2,26.0]
[1759073866880,0.2,203.33,203.21,14.31559401]
[1759073866881,1.73759114,203.26,203.21,14.31559401]
[1759073867183,1.73759114,203.24,203.21,14.31559401]
[1759073867384,1.73759114,203.24,203.21,13.59559401]
[1759073867593,1.73759114,203.24,203.22,0.72]
[1759073867786,1.73759114,203.25,203.23,0.72]
[1759073868487,1.73759114,203.25,203.21,18.51657236]
[1759073868688,1.73759114,203.26,203.24,0.72]
[1759073869165,14.80275331,203.27,203.21,18.51657236]
[1759073869166,14.80275331,203.27,203.25,0.72]
[1759073869362,16.54034445,203.27,203.21,20.2541635]
[1759073869566,14.80275331,203.27,203.25,0.72]
[1759073870792,1.73759114,203.28,203.25,0.72]
[1759073870990,14.80275331,203.27,203.25,0.72]
[1759073872202,1.73759114,203.28,203.26,0.69]
[1759073872492,16.53961408,203.28,203.26,0.69]
[1759073873380,16.53961408,203.28,203.25,0.69]
[1759073875683,16.53961408,203.28,203.23,18.51609235]
[1759073875995,16.53961408,203.28,203.26,0.69]
[1759073880393,1.73759114,203.29,203.27,0.69]
[1759073880793,13.59559401,203.28,203.27,0.69]
[1759073881182,1.73759114,203.3,203.27,0.69]
[1759073881382,26.0,203.34,203.27,0.69]
[1759073881383,26.2,203.34,203.28,13.59559401]
[1759073881593,13.59559401,203.31,203.29,0.69]
[1759073881796,1.73759114,203.33,203.29,0.69]
[1759073881982,27.73759114,203.33,203.28,13.59559401]
[1759073882188,42.53669333,203.33,203.3,0.69]
[1759073882588,42.53669333,203.33,203.31,0.69]
[1759073883189,42.53669333,203.33,203.3,0.69]
[1759073885493,42.53669333,203.33,203.28,18.51489656]
[1759073885704,42.53669333,203.33,203.3,13.59559401]
[1759073886389,42.53669333,203.33,203.3,14.28559401]
[1759073886785,1.73759114,203.31,203.27,13.59559401]
[1759073886990,1.73759114,203.29,203.27,14.28559401]
[1759073887186,26.0,203.28,203.23,6.65812452]
[1759073887396,26.0,203.28,203.25,13.59559401]
[1759073887703,26.0,203.28,203.25,14.28559401]
[1759073887906,26.0,203.28,203.26,0.69]
[1759073889709,26.0,203.28,203.25,13.59559401]
[1759073889905,26.0,203.28,203.25,14.28559401]
[1759073890907,26.0,203.28,203.26,0.72]
[1759073895991,26.0,203.28,203.25,13.59559401]
[1759073896320,27.73759114,203.28,203.25,14.31559401]
[1759073896690,27.73759114,203.28,203.25,13.59559401]
[1759073896889,1.73759114,203.28,203.25,13.59559401]
[1759073897102,15.33318515,203.28,203.25,0.72]
[1759073898306,1.73759114,203.28,203.25,0.72]
[1759073898700,1.73759114,203.28,203.23,13.59559401]
[1759073898904,1.73759114,203.28,203.26,0.72]
[1759073900014,1.73759114,203.28,203.23,13.59559401]
[1759073900210,1.73759114,203.28,203.25,13.59559401]
[1759073900609,1.73759114,203.28,203.25,14.29559401]
[1759073901702,1.73759114,203.28,203.26,0.7]
[1759073902823,42.53888379,203.29,203.26,0.7]
[1759073905218,42.53888379,203.29,203.27,0.7]
[1759073906302,14.80129265,203.29,203.28,0.7]
[1759073906618,1.73759114,203.31,203.28,14.29559401]
[1759073906810,1.73759114,203.32,203.29,0.7]
[1759073907010,14.79983227,203.31,203.29,0.7]
[1759073907234,14.79983227,203.31,203.28,14.29559401]
[1759073908627,1.73759114,203.32,203.28,14.29559401]
[1759073909234,1.73759114,203.31,203.28,14.29559401]
[1759073910222,26.0,203.28,203.21,0.7]
[1759073910423,1.73759114,203.24,203.22,0.7]
[1759073910816,1.73759114,203.24,203.23,14.29559401]
[1759073911124,1.73759114,203.25,203.24,13.59559401]
[1759073911299,1.73759114,203.26,203.24,13.59559401]
[1759073911506,1.73759114,203.26,203.23,0.7]
[1759073912226,1.73759114,203.26,203.24,13.59559401]
[1759073912425,1.73759114,203.26,203.23,0.7]
[1759073912725,1.73759114,203.25,203.23,0.7]
[1759073914229,2.71795448,203.25,203.23,0.7]
[1759073916218,2.71795448,203.24,203.2,14.29559401]
[1759073916412,2.71795448,203.22,203.19,13.59559401]
[1759073916832,2.71795448,203.22,203.19,14.29559401]
[1759073917633,2.71795448,203.21,203.19,0.7]
[1759073918136,28.71795448,203.2,203.16,13.79559401]
[1759073918432,2.71795448,203.19,203.17,0.7]
[1759073919839,2.71795448,203.2,203.17,0.7]
[1759073924414,39.79559401,203.22,203.16,0.2]
[1759073924615,2.71795448,203.2,203.17,0.7]
[1759073925426,2.71795448,203.2,203.18,0.7]
[1759073928138,2.71795448,203.2,203.16,0.2]
[1759073928314,2.71795448,203.2,203.17,0.7]
[1759073931538,2.71795448,203.2,203.16,0.2]
[1759073931539,26.0,203.17,203.16,0.2]
[1759073931735,28.91795448,203.17,203.16,0.2]
[1759073932244,2.91795448,203.17,203.16,0.2]
[1759073932427,4.89292177,203.17,203.16,0.2]
[1759073932617,30.89292177,203.17,203.16,0.2]
[1759073933030,4.89292177,203.17,203.16,0.2]
[1759073933242,30.89292177,203.17,203.16,0.2]
[1759073933942,4.89292177,203.17,203.16,0.2]
[1759073934714,8.87698076,203.17,203.16,0.2]
[1759073935524,4.89292177,203.17,203.16,0.2]
[1759073935742,4.69292177,203.17,203.16,0.2]
[1759073935960,30.69292177,203.17,203.16,0.2]
[1759073936123,34.69874076,203.17,203.16,0.2]
[1759073936529,34.89874076,203.17,203.16,0.2]
[1759073937343,37.61669524,203.17,203.16,0.2]
[1759073938046,75.39669524,203.17,203.16,0.2]
[1759073938727,34.89874076,203.17,203.16,0.2]
[1759073938920,72.67874076,203.17,203.16,0.2]
[1759073940043,75.39669524,203.17,203.16,0.2]
[1759073941127,69.96078628,203.17,203.16,0.2]
[1759073941345,75.39669524,203.17,203.16,0.2]
[1759073941526,75.37669524,203.17,203.16,0.2]
[1759073942728,80.29868175,203.17,203.16,0.2]
[1759073942940,42.53868175,203.17,203.16,0.2]
[1759073943137,37.61669524,203.17,203.16,0.2]
[1759073943330,75.37669524,203.17,203.16,0.2]
[1759073943737,80.29868175,203.17,203.16,0.2]
[1759073944331,31.98078628,203.17,203.16,0.2]
[1759073944530,31.98078628,203.17,203.16,0.88]
[1759073944531,4.69292177,203.17,203.16,0.88]
[1759073944736,30.69292177,203.17,203.16,0.88]
[1759073944943,30.69292177,203.17,203.16,0.2]
[1759073944944,65.75496729,203.17,203.16,0.2]
[1759073945145,68.47292177,203.17,203.16,0.2]
[1759073945350,30.69292177,203.17,203.16,0.2]
[1759073945537,68.49292177,203.17,203.16,0.2]
[1759073945929,27.97496729,203.17,203.16,0.2]
[1759073946131,68.49292177,203.17,203.16,0.2]
[1759073946541,30.69292177,203.17,203.16,0.2]
[1759073946742,68.47292177,203.17,203.16,0.2]
[1759073947145,30.69292177,203.17,203.16,0.2]
[1759073947447,71.19087625,203.17,203.16,0.2]
[1759073948035,33.41087625,203.17,203.16,0.2]
[1759073948232,71.19087625,203.17,203.16,0.2]
[1759073950140,33.41087625,203.17,203.16,0.2]
[1759073950333,71.19087625,203.17,203.16,0.2]
[1759073953455,71.39087625,203.17,203.16,0.2]
[1759073953651,65.95496729,203.17,203.16,0.2]
[1759073953859,71.17087625,203.17,203.16,0.2]
[1759073954054,33.41087625,203.17,203.16,0.2]
[1759073954361,68.45292177,203.17,203.16,0.9]
[1759073959782,71.37087625,203.17,203.16,0.2]
[1759073959961,76.29286276,203.17,203.12,0.2]
[1759073960163,28.71795448,203.13,203.11,0.2]
[1759073960341,40.51795448,203.12,203.11,0.2]
[1759073960541,40.71795448,203.12,203.11,0.2]
[1759073960766,42.69379978,203.12,203.11,0.2]
[1759073960957,46.00012365,203.12,203.1,0.2]
[1759073961157,26.0,203.09,203.05,0.67]
[1759073961347,2.71795448,203.06,203.05,0.67]
[1759073961948,2.71795448,203.06,203.02,0.2]
[1759073962143,2.71795448,203.05,203.02,0.87]
[1759073962554,40.55795448,203.05,203.02,0.87]
[1759073964463,40.55795448,203.05,203.02,0.2]
[1759073964654,40.55795448,203.05,203.03,0.87]
[1759073966558,40.55795448,203.05,203.03,0.2]
[1759073967160,40.75795448,203.05,203.03,0.2]
[1759073967466,42.7344832,203.05,203.03,0.2]
[1759073967648,42.5344832,203.05,203.03,0.2]
[1759073967852,2.71795448,203.04,203.03,0.2]
[1759073968053,66.55795448,203.04,203.03,0.2]
[1759073968973,28.71795448,203.04,203.03,0.2]
[1759073969161,66.75795448,203.04,202.98,0.67]
[1759073969366,2.71795448,202.99,202.98,0.67]
[1759073970071,2.71795448,202.99,202.97,0.87]
[1759073970383,40.57795448,202.98,202.97,0.2]
[1759073972351,37.86,202.98,202.97,0.2]
[1759073972964,41.72585139,202.98,202.97,0.2]
[1759073973150,67.72585139,202.98,202.97,0.2]
[1759073973974,37.86,202.98,202.97,0.2]
[1759073974170,41.7214721,202.98,202.97,0.2]
[1759073974977,41.7214721,202.98,202.97,0.87]
[1759073975865,41.7214721,202.98,202.97,0.2]
[1759073976852,37.86,202.98,202.97,0.2]
[1759073977050,41.8578963,202.98,202.97,0.2]
[1759073977261,26.0,202.99,202.97,0.2]
[1759073977478,37.86,202.98,202.97,0.2]
[1759073979966,29.95195712,202.99,202.97,0.2]
[1759073980173,37.84,202.98,202.97,0.2]
[1759073980486,1.74423542,203.0,202.97,0.2]
[1759073980782,63.84,202.99,202.97,0.87]
[1759073981474,63.84,202.99,202.97,0.2]
[1759073981861,67.83294316,202.99,202.97,0.2]
[1759073982366,26.0,202.98,202.97,0.2]
[1759073982574,63.84,202.98,202.97,0.2]
[1759073983076,26.0,202.98,202.97,0.2]
[1759073983382,63.84,202.98,202.97,0.2]
[1759073984773,3.99294316,202.99,202.97,0.2]
[1759073984774,26.0,202.99,202.97,0.87]
[1759073984974,26.0,202.99,202.98,2.41423542]
[1759073985172,63.84,202.99,202.98,2.41423542]
[1759073985377,63.86,202.99,202.98,2.41423542]
[1759073985574,26.0,202.99,202.98,2.41423542]
[1759073985780,63.86,202.99,202.98,2.41423542]
[1759073986281,37.86,202.99,202.98,2.41423542]
[1759073986584,37.84,203.0,202.98,2.41423542]
[1759073986771,37.84,203.0,202.99,0.67]
[1759073987085,26.0,203.0,202.99,0.67]
[1759073987293,63.84,203.0,202.99,0.67]
[1759073988675,26.0,203.0,202.99,0.67]
[1759073988890,63.84,203.0,202.99,0.67]
[1759073989089,37.84,203.0,202.99,0.67]
[1759073989770,26.0,202.98,202.97,2.61423542]
[1759073990163,63.84,202.99,202.97,2.61423542]
[1759073990366,63.84,202.99,202.98,0.67]
[1759073990980,63.84,202.99,202.97,0.2]
[1759073991379,63.84,202.99,202.97,0.87]
[1759073991564,37.84,202.98,202.97,0.87]
[1759073992292,26.0,202.99,202.97,2.61423542]
[1759073992674,26.0,202.99,202.98,0.67]
[1759073992980,63.82,202.99,202.98,2.41423542]
[1759073993182,63.82,202.99,202.97,0.2]
[1759073993495,26.0,202.99,202.98,2.41423542]
[1759073999296,26.0,203.05,202.98,2.41423542]
[1759073999491,37.82,203.04,203.02,1.74423542]
[1759074000401,37.82,203.04,203.02,2.41423542]
[1759074000992,37.82,203.04,203.02,0.67]
[1759074001198,37.82,203.04,203.02,2.41423542]
[1759074001596,30.02145014,203.05,203.02,2.41423542]
[1759074001803,63.82,203.04,203.03,0.67]
[1759074002004,63.82,203.04,203.02,1.74423542]
[1759074002209,26.0,203.05,203.02,1.74423542]
[1759074002404,132.78225725,203.08,203.04,1.74423542]
[1759074002585,26.0,203.04,203.01,1.74423542]
[1759074002785,37.82,203.05,203.01,1.74423542]
[1759074003094,63.82,203.05,203.01,1.74423542]
[1759074003289,26.0,203.03,203.02,0.67]
[1759074003490,134.52649267,203.08,203.02,2.41423542]
[1759074003692,132.78225725,203.08,203.04,1.74423542]
[1759074003909,132.78225725,203.08,203.05,2.41423542]
[1759074004114,132.78225725,203.08,203.05,1.74423542]
[1759074004115,26.0,203.06,203.05,1.74423542]
[1759074004295,26.0,203.05,203.04,1.74423542]
[1759074004600,26.0,203.05,202.99,18.52194506]
[1759074004601,63.82,203.05,202.97,0.2]
[1759074004906,26.0,203.02,203.0,1.74423542]
[1759074005101,26.0,203.02,203.01,0.67]
[1759074006004,0.2,203.07,203.01,0.67]
[1759074006198,1.74423542,203.05,203.01,0.67]
[1759074006602,65.66423542,203.06,203.01,0.67]
[1759074006804,63.9,203.06,203.01,2.41423542]
[1759074007321,63.9,203.06,203.02,0.67]
[1759074007482,63.9,203.06,203.03,0.67]
[1759074007905,27.74423542,203.06,203.03,0.67]
[1759074008104,65.64423542,203.06,203.03,0.67]
[1759074010028,135.35871963,203.11,203.04,0.67]
[1759074010339,38.5,203.15,203.08,1.74423542]
[1759074010502,3.31755383,203.14,203.09,2.41423542]
[1759074010703,26.0,203.11,203.1,0.67]
[1759074013224,26.0,203.08,202.96,0.2]
[1759074013426,27.74423542,203.08,203.03,0.68]
[1759074013609,26.0,203.06,203.03,0.68]
[1759074015521,1.74423542,203.07,203.03,0.68]
[1759074015726,26.0,203.05,203.03,0.68]
[1759074017140,27.74423542,203.05,203.01,0.68]
[1759074017718,1.74423542,203.05,203.01,0.68]
[1759074018016,1.74423542,203.05,202.99,1.74423542]
[1759074018213,1.74423542,203.05,203.02,0.68]
[1759074019539,26.0,203.03,202.97,13.79559401]
[1759074019718,26.0,203.03,203.0,0.68]
[1759074019911,26.0,203.03,203.01,0.68]
[1759074020113,1.74423542,203.05,203.02,0.68]
[1759074020329,26.0,203.03,203.02,0.68]
[1759074020923,1.74423542,203.05,203.02,0.68]
[1759074021123,26.0,203.03,203.02,0.68]
[1759074021338,26.0,203.03,202.98,1.74423542]
[1759074021540,1.74423542,203.05,202.99,0.72]
[1759074021746,26.0,203.03,202.99,0.72]
[1759074021950,26.0,203.03,202.98,1.74423542]
[1759074022128,26.0,203.03,202.99,0.72]
[1759074022625,26.0,203.03,203.0,0.72]
[1759074022814,1.94423542,203.05,203.0,0.72]
[1759074023022,26.0,203.02,203.0,0.72]
[1759074023642,27.74423542,203.02,203.0,0.72]
[1759074024647,26.0,203.02,203.0,0.72]
[1759074025624,26.0,202.99,202.97,0.2]
[1759074025927,1.74423542,202.98,202.97,0.2]
[1759074026123,27.74423542,202.98,202.97,0.2]
[1759074030018,0.2,202.98,202.97,0.2]
[1759074030214,26.0,203.0,202.97,0.2]
[1759074030446,26.0,202.99,202.98,0.72]
[1759074030949,26.0,203.01,202.98,0.72]
[1759074031249,65.74423542,203.01,202.98,0.72]
[1759074031450,1.74423542,203.0,202.97,0.2]
[1759074031653,1.74423542,203.0,202.97,0.92]
[1759074031832,1.74423542,203.0,202.98,0.72]
[1759074035640,26.0,203.01,202.99,0.72]
[1759074035867,132.78225725,203.04,202.99,0.72]
[1759074036029,39.76423542,203.05,202.99,0.72]
[1759074036222,132.78225725,203.11,202.99,0.72]
[1759074036223,2.72358654,203.04,202.99,0.72]
[1759074036623,26.0,203.02,202.99,0.72]
[1759074037553,0.2,203.1,203.0,13.59559401]
[1759074037751,26.0,203.06,203.01,0.72]
[1759074037956,26.0,203.05,203.01,0.72]
[1759074040826,2.72358654,203.06,203.01,0.72]
[1759074045152,2.72358654,203.05,203.01,0.72]
[1759074046452,2.72358654,203.05,203.02,0.72]
[1759074049541,2.72358654,203.04,202.97,0.2]
[1759074049738,2.72358654,203.04,202.99,0.72]
[1759074051957,2.72358654,203.04,203.0,0.71]
[1759074052437,2.72358654,203.04,203.01,0.71]
[1759074052940,2.72358654,203.04,203.0,0.71]
[1759074054541,2.72358654,203.04,203.01,0.71]
[1759074054743,2.72358654,203.04,202.98,13.59559401]
[1759074054942,2.72358654,203.04,203.0,0.71]
[1759074055656,2.72358654,203.04,203.01,0.71]
[1759074057459,2.72358654,203.06,203.01,0.71]
[1759074058345,2.72358654,203.06,203.02,0.71]
[1759074060474,2.72358654,203.05,203.02,0.71]
[1759074061651,2.72358654,203.05,203.03,0.71]
[1759074062247,2.72358654,203.05,203.0,13.59559401]
[1759074062447,2.72358654,203.05,203.03,0.71]
[1759074062665,2.72358654,203.05,202.98,13.59559401]
[1759074062983,2.72358654,203.04,202.99,0.71]
[1759074063264,2.72358654,203.04,202.97,0.91]
[1759074063265,2.72358654,203.02,202.97,0.91]
[1759074063568,2.72358654,203.02,202.98,0.71]
[1759074064051,2.92358654,203.01,202.97,0.2]
[1759074064253,2.92358654,203.0,202.97,0.2]
[1759074064470,2.72358654,202.98,202.97,0.2]
[1759074065747,0.2,203.01,202.97,0.2]
[1759074066061,2.72358654,202.99,202.97,0.2]
[1759074068273,3.32081589,203.03,202.98,0.71]
[1759074068448,26.0,203.04,202.98,3.43358654]
[1759074068449,29.32081589,203.04,202.98,3.43358654]
[1759074068653,28.72358654,203.05,202.99,17.02918055]
[1759074068883,2.72358654,203.04,203.0,0.71]
[1759074069081,2.72358654,203.03,202.97,2.92358654]
[1759074069265,2.72358654,203.03,202.99,0.71]
[1759074069878,2.72358654,203.03,202.97,2.92358654]
[1759074069879,0.2,203.03,202.97,0.91]
[1759074070173,2.72358654,203.01,202.98,0.71]
[1759074070789,2.72358654,203.0,202.97,0.2]
[1759074071356,2.72358654,203.0,202.97,0.9]
[1759074072406,2.72358654,202.99,202.97,0.2]
[1759074073005,0.2,203.01,202.97,0.2]
[1759074073287,2.72358654,202.99,202.97,0.2]
[1759074073871,28.72358654,202.99,202.97,0.2]
[1759074074090,26.0,202.95,202.94,0.2]
[1759074074259,93.39317711,202.95,202.91,0.2]
[1759074074461,26.0,202.91,202.89,0.2]
[1759074074660,66.94358654,202.91,202.89,0.2]
[1759074074887,39.86266878,202.91,202.89,0.2]
[1759074075063,36.5424791,202.91,202.89,0.2]
[1759074075269,74.7824791,202.91,202.89,0.2]
[1759074077572,79.71077243,202.91,202.89,0.2]
[1759074077778,75.30288465,202.91,202.84,0.2]
[1759074078089,28.72358654,202.88,202.84,0.2]
[1759074078264,26.0,202.87,202.84,0.2]
[1759074078466,64.36,202.87,202.84,0.2]
[1759074080902,64.26,202.87,202.84,0.2]
[1759074081072,26.0,202.87,202.84,0.2]
[1759074081273,64.26,202.87,202.85,0.7]
[1759074081692,66.98358654,202.87,202.85,0.7]
[1759074082075,66.98358654,202.87,202.84,0.2]
[1759074083097,67.08358654,202.87,202.84,0.2]
[1759074083462,69.80717308,202.87,202.84,0.2]
[1759074083672,5.44717308,202.85,202.84,0.2]
[1759074084070,5.54717308,202.85,202.84,0.2]
[1759074084799,28.72358654,202.85,202.84,0.2]
[1759074085100,66.98358654,202.85,202.84,0.2]
[1759074085585,68.96197267,202.85,202.84,0.2]
[1759074086492,8.69173869,202.85,202.84,0.2]
[1759074086690,42.96197267,202.85,202.84,0.2]
[1759074086890,4.70197267,202.85,202.84,0.2]
[1759074087197,42.96197267,202.85,202.84,0.2]
[1759074087491,4.70197267,202.85,202.84,0.2]
[1759074087695,42.96197267,202.85,202.84,0.2]
[1759074088495,5.91960432,202.85,202.84,0.9]
[1759074088685,42.94197267,202.85,202.84,0.9]
[1759074089305,40.96358654,202.85,202.84,0.2]
[1759074090385,40.98358654,202.85,202.84,0.2]
[1759074092781,5.44717308,202.85,202.84,0.2]
[1759074093099,43.68717308,202.85,202.84,0.2]
[1759074093704,5.44717308,202.85,202.84,0.2]
[1759074094003,43.68717308,202.85,202.84,0.2]
[1759074094201,43.68717308,202.85,202.83,0.2]
[1759074094385,5.44717308,202.84,202.83,0.2]
[1759074094702,26.0,202.82,202.81,0.1]
[1759074094921,66.96358654,202.82,202.81,0.1]
[1759074095107,66.94358654,202.82,202.81,0.8]
[1759074096412,65.96795347,202.82,202.79,0.1]
[1759074096614,1.74795347,202.8,202.79,0.1]
[1759074096784,39.96795347,202.8,202.79,0.1]
[1759074098311,39.96795347,202.8,202.79,0.8]
[1759074099392,39.94795347,202.8,202.79,0.8]
[1759074100808,39.94796469,202.8,202.79,0.8]
[1759074102202,1.74796469,202.8,202.79,0.8]
[1759074102448,39.94796469,202.8,202.79,0.8]
[1759074102705,39.94796469,202.8,202.77,0.1]
[1759074102706,26.0,202.77,202.74,0.7]
[1759074102912,26.0,202.73,202.67,13.59559401]
[1759074103119,1.74796469,202.69,202.67,13.59559401]
[1759074103419,26.0,202.73,202.67,18.52972338]
[1759074103710,38.22,202.75,202.67,4.93412937]
[1759074103711,1.74796469,202.71,202.67,4.93412937]
[1759074103908,1.74796469,202.72,202.68,13.59559401]
[1759074104208,1.74796469,202.71,202.7,13.59559401]
[1759074104612,1.74796469,202.71,202.68,13.59559401]
[1759074104999,1.74796469,202.71,202.7,13.59559401]
[1759074105207,1.74796469,202.71,202.7,14.29559401]
[1759074107112,7.71889256,202.83,202.7,31.56249089]
[1759074107321,1.74796469,202.75,202.72,13.59559401]
[1759074107612,1.74796469,202.75,202.73,0.7]
[1759074108391,26.0,202.81,202.74,13.59559401]
[1759074108612,1.74796469,202.76,202.75,14.29559401]
[1759074110518,7.52022034,202.88,202.76,13.59559401]
[1759074110731,1.74796469,202.82,202.78,13.59559401]
[1759074110928,133.49225725,202.9,202.8,13.59559401]
[1759074110929,1.74796469,202.83,202.8,13.59559401]
[1759074111105,1.74796469,202.83,202.82,13.59559401]
[1759074111304,0.71,202.9,202.82,14.26559401]
[1759074111509,1.74796469,202.84,202.83,0.67]
[1759074112018,1.74796469,202.85,202.84,13.59559401]
[1759074112194,1.74796469,202.86,202.84,14.26559401]
[1759074112398,1.74796469,202.86,202.85,14.26559401]
[1759074113323,1.74796469,202.86,202.85,19.19534505]
[1759074113817,1.74796469,202.86,202.85,14.26559401]
[1759074116034,26.0,202.92,202.85,19.19534505]
[1759074116207,1.74796469,202.87,202.86,0.67]
[1759074117115,1.74796469,202.87,202.86,14.26559401]
[1759074118125,1.74796469,202.87,202.86,19.19510204]
[1759074119535,26.71,202.93,202.86,19.19510204]
[1759074119737,1.74796469,202.88,202.87,14.26559401]
[1759074120615,1.74796469,202.89,202.87,14.26559401]
[1759074120809,1.74796469,202.9,202.88,0.67]
[1759074121013,1.74796469,202.9,202.89,0.67]
[1759074123727,6.99185876,202.95,202.89,5.59877914]
[1759074124033,1.74796469,202.93,202.91,13.59559401]
[1759074124212,1.74796469,202.93,202.92,0.67]
[1759074124743,26.0,202.98,202.92,0.67]
[1759074124744,1.74796469,202.95,202.92,0.67]
[1759074125736,1.74796469,202.96,202.94,13.59559401]
[1759074125931,1.74796469,202.96,202.95,0.67]
[1759074127415,1.74796469,202.96,202.95,14.26559401]
[1759074127635,0.2,203.03,202.97,13.59559401]
[1759074127938,26.2,203.03,202.97,13.59559401]
[1759074128117,1.74796469,202.99,202.97,14.26559401]
[1759074128432,1.74796469,202.99,202.98,14.26559401]
[1759074128948,2.45796469,202.99,202.94,13.59559401]
[1759074129118,1.74796469,202.95,202.94,13.59559401]
[1759074129922,1.74796469,202.95,202.94,0.67]
[1759074130120,1.74796469,202.97,202.94,0.67]
[1759074131118,1.74796469,202.97,202.92,18.52361395]
[1759074131318,1.74796469,202.97,202.94,13.59559401]
[1759074131741,1.74796469,202.99,202.94,0.68]
[1759074131940,2.44796469,202.99,202.94,0.68]
[1759074132844,1.74796469,202.99,202.94,0.68]
[1759074133138,2.44796469,202.99,202.94,0.68]
[1759074133643,1.74796469,202.95,202.91,13.59559401]
[1759074133830,1.74796469,202.93,202.91,13.59559401]
[1759074134419,1.74796469,202.93,202.91,14.27559401]
[1759074135122,1.74796469,202.94,202.92,0.68]
[1759074136142,1.74796469,202.93,202.92,0.68]
[1759074137842,1.74796469,202.93,202.91,13.59559401]
[1759074138041,1.74796469,202.92,202.91,13.59559401]
[1759074138644,1.74796469,202.92,202.91,14.27559401]
[1759074138945,1.74796469,202.93,202.91,19.20388734]
[1759074139246,1.74796469,202.93,202.92,0.68]
[1759074140246,1.74796469,202.93,202.92,14.27559401]
[1759074142140,26.68,202.99,202.93,13.59559401]
[1759074142346,1.74796469,202.94,202.93,14.29559401]
[1759074144351,1.74796469,202.96,202.93,19.22340162]
[1759074144539,1.74796469,202.96,202.95,13.59559401]
[1759074144847,2.42796469,202.96,202.91,5.62814892]
[1759074145048,1.74796469,202.92,202.91,13.59559401]
[1759074145561,1.74796469,202.92,202.91,14.29559401]
[1759074145756,1.74796469,202.92,202.91,19.22388734]
[1759074145944,1.74796469,202.93,202.91,19.22388734]
[1759074146134,1.74796469,202.93,202.92,0.7]